fUST/lending_fUST_20251127
["ID","MTS","AMOUNT","RATE_DAILY","PERIOD"]
[394983490,1764252578082,-258.00832451,4.113e-05,2]
[394983491,1764252581677,-246.25225795,4.113e-05,2]
[394983492,1764252583185,-202.54324198,4.113e-05,2]
[394983493,1764252585256,-171.41777126,4.113e-05,2]
[394983494,1764252589401,-281.89377431,4.113e-05,2]
[394983495,1764252591928,-168.73432618,4.113e-05,2]
[394983496,1764252593357,-203.55812264,4.113e-05,2]
[394983497,1764252597256,-200.0,4.113e-05,2]
[394983498,1764252600647,-300.0,4.113e-05,2]
[394983499,1764252604943,-297.21617356,4.112e-05,2]
[394983500,1764252607991,-2.78382644,4.112e-05,2]
[394983501,1764252608052,-211.91748837,4.113e-05,2]
[394983502,1764252610101,-300.0,4.112e-05,2]
[394983503,1764252614918,-320.78017685,4.112e-05,2]
[394983504,1764252619968,-179.21982315,4.112e-05,2]
[394983505,1764252622550,-400.0,4.112e-05,2]
[394983506,1764252622580,-40.88129075,4.113e-05,2]
[394983507,1764252624686,-223.04978818,4.113e-05,2]
[394983508,1764252627871,-182.82596101,4.113e-05,2]
[394983509,1764252629509,-332.82431673,4.113e-05,2]
[394983510,1764252631420,-362.78096674,4.113e-05,2]
[394983526,1764252632003,-2396.8897785,4.113e-05,2]
[394983527,1764252632014,-435.11809138,4.113e-05,2]
[394983528,1764252632025,-10125.83097728,4.113e-05,2]
[394983529,1764252632035,-609.89,4.113e-05,2]
[394983532,1764252632071,-643.77140468,4.113e-05,2]
[394983880,1764252640393,-3182.9385977,4.113e-05,2]
[394983986,1764252641437,-2e-08,4.113e-05,2]
[394984034,1764252641877,-272.71,4.113e-05,2]
[394984036,1764252641888,-263.41737901,4.113e-05,2]
[394984038,1764252641900,-499.99509108,4.113e-05,2]
[394984049,1764252642004,-8701.70780119,4.113e-05,2]
[394984067,1764252644907,-3846.45288983,4.113e-05,2]
[394984068,1764252644918,-17459.16382567,4.113e-05,2]
[394984075,1764252645867,-841.34412303,4.113e-05,2]
[394984086,1764252646223,-2265.9225486,4.113e-05,2]
[394984087,1764252646282,-13331.54751307,4.113e-05,2]
[394984103,1764252676016,-167.17568327,4.031e-05,2]
[394984104,1764252676038,-409.27913023,4.072e-05,2]
[394984105,1764252690929,-300.0,4.072e-05,2]
[394984117,1764252741461,-52.99683313,4.072e-05,2]
[394984118,1764252741483,-176.08268123,4.093e-05,2]
[394984119,1764252743391,-290.43999302,4.093e-05,2]
[394984120,1764252745464,-33.47732575,4.093e-05,2]
[394984121,1764252745490,-135.8454252,4.093e-05,2]
[394984122,1764252747615,-364.1545748,4.093e-05,2]
[394984123,1764252747637,-19.3224643,4.093e-05,2]
[394984124,1764252756924,1983.73321796,4.052e-05,2]
[394984125,1764252765032,843.23978307,4.052e-05,2]
[394984128,1764252880114,1291.96125674,4.051e-05,2]
[394984129,1764252917457,295.32964773,4.051e-05,2]
[394984130,1764252925291,295.32964773,4.051e-05,2]
[394984131,1764252926669,-220.96984632,4.092e-05,2]
[394984132,1764252927879,-212.24367788,4.092e-05,2]
[394984133,1764252929288,-292.14156167,4.092e-05,2]
[394984134,1764252933274,-339.82700162,4.092e-05,2]
[394984135,1764252936913,-134.81791251,4.092e-05,2]
[394984136,1764252936935,-113.85766135,4.092e-05,2]
[394984137,1764252941500,-36.14233865,4.092e-05,2]
[394984138,1764252941520,-241.90363517,4.093e-05,2]
[394984143,1764253035924,-96.13052477,4.093e-05,2]
[394984144,1764253035946,-93.70649541,4.112e-05,2]
[394984145,1764253037887,-205.68742947,4.112e-05,2]
[394984146,1764253040375,-0.60607512,4.112e-05,2]
[394984147,1764253040398,-238.01013229,4.112e-05,2]
[394984148,1764253042419,1399.98986771,4.071e-05,2]
[394984149,1764253044932,-61.98986771,4.112e-05,2]
[394984150,1764253044956,-114.66211676,4.112e-05,2]
[394984151,1764253046759,-163.44,4.112e-05,2]
[394984152,1764253048029,-326.83666516,4.112e-05,2]
[394984153,1764253050525,-228.66283741,4.112e-05,2]
[394984154,1764253053594,-160.10487608,4.112e-05,2]
[394984155,1764253056818,-44.29350459,4.112e-05,2]
[394984156,1764253056839,-192.62611491,4.112e-05,2]
[394984157,1764253057758,295.32964773,4.071e-05,2]
[394984158,1764253066458,-107.37388509,4.112e-05,2]
[394984159,1764253066484,-92.62611491,4.113e-05,2]
[394984160,1764253072614,-176.43963223,4.112e-05,2]
[394984161,1764253080966,-261.71742697,4.112e-05,2]
[394984163,1764253111038,-156.07036398,4.112e-05,2]
[394984164,1764253363626,10000.01,3.59e-05,2]
[394984165,1764253365572,-325.61409922,3.59e-05,2]
[394984166,1764253367692,-153.90257288,3.555e-05,2]
[394984167,1764253370263,-192.81257279,3.555e-05,2]
[394984168,1764253373343,-287.37240292,3.555e-05,2]
[394984169,1764253374879,-297.17602716,3.555e-05,2]
[394984170,1764253377315,-307.18742721,3.519e-05,2]
[394984171,1764253379693,-214.04159855,3.519e-05,2]
[394984172,1764253379722,-919.16202465,3.555e-05,2]
[394984173,1764253379750,-1524.81150118,3.59e-05,2]
[394984174,1764253383057,214.04159855,3.484e-05,2]
[394984175,1764253390945,1194.0,4.07e-05,2]
[394984176,1764253398958,1194.0,4.07e-05,2]
[394984177,1764253406683,1194.0,4.07e-05,2]
[394984178,1764253414604,887.93815269,4.07e-05,2]
[394984179,1764253414630,306.06184731,4.07e-05,2]
[394984180,1764253423204,1194.0,4.07e-05,2]
[394984190,1764253755888,-174.04848096,3.871e-05,2]
[394984231,1764253838158,-207.95151904,3.756e-05,2]
[394984233,1764253838167,-207.95151904,3.794e-05,2]
[394984235,1764253838178,-207.95151904,3.832e-05,2]
[394984237,1764253838188,-128.88169994,3.891e-05,2]
[394984277,1764253840390,-21.11830006,3.891e-05,2]
[394984279,1764253840400,-541.3756146,3.992e-05,2]
[394984281,1764253840411,-658.6243854,3.992e-05,2]
[394984282,1764253840420,-513.04524053,3.993e-05,2]
[394984284,1764253840428,-309.71918636,3.993e-05,2]
[394984286,1764253840438,-500.0,3.993e-05,2]
[394984288,1764253840446,-500.0,3.993e-05,2]
[394984290,1764253840455,-500.0,3.993e-05,2]
[394984292,1764253840464,-97.89469187,3.993e-05,2]
[394984295,1764253840485,-402.10530813,3.993e-05,2]
[394984297,1764253840495,-500.0,3.993e-05,2]
[394984299,1764253840506,-500.0,3.993e-05,2]
[394984301,1764253840515,-500.0,3.993e-05,2]
[394984303,1764253840524,-894.0,4.012e-05,2]
[394984305,1764253840533,-300.0,4.012e-05,2]
[394984307,1764253840542,-300.0,4.012e-05,2]
[394984309,1764253840551,-300.0,4.012e-05,2]
[394984311,1764253840560,-20120.95609417,4.013e-05,2]
[394984349,1764253840920,-2e-08,4.013e-05,2]
[394984351,1764253840930,-439.31,4.013e-05,2]
[394984692,1764253914206,169.694909,1.549e-05,2]
[394984693,1764253914436,169.694909,2.323e-05,2]
[394984694,1764253914624,169.694909,3.098e-05,2]
[394984699,1764253998492,-564.1475851,3.933e-05,2]
[394984700,1764253999646,-619.31570627,3.973e-05,2]
[394984701,1764254001153,-398.07193384,3.973e-05,2]
[394984703,1764254002572,-212.52786077,3.973e-05,2]
[394984704,1764254004030,845.71831756,3.933e-05,2]
[394984705,1764254015930,-1973.5214631,3.973e-05,2]
[394984706,1764254015960,-500.0,3.993e-05,2]
[394984707,1764254015991,-500.0,3.993e-05,2]
[394984708,1764254016021,-500.0,3.993e-05,2]
[394984709,1764254016049,-500.0,3.993e-05,2]
[394984710,1764254016079,-500.0,3.993e-05,2]
[394984711,1764254016298,-101.64783616,4.013e-05,2]
[394984712,1764254016373,-10000.01,4.013e-05,2]
[394984713,1764254016395,-10000.01,4.013e-05,2]
[394984714,1764254016474,-10000.01,4.013e-05,2]
[394984715,1764254016585,-10000.01,4.013e-05,2]
[394984716,1764254016939,-10000.01,4.013e-05,2]
[394984717,1764254017195,-10000.01,4.013e-05,2]
[394984718,1764254017321,-10000.01,4.013e-05,2]
[394984719,1764254017503,-10000.01,4.013e-05,2]
[394984720,1764254021642,-10000.01,4.013e-05,2]
[394984721,1764254026075,-10000.01,4.013e-05,2]
[394984722,1764254026215,-10000.01,4.013e-05,2]
[394984723,1764254026344,-10000.01,4.013e-05,2]
[394984724,1764254026461,-10000.01,4.013e-05,2]
[394984725,1764254026584,-10000.01,4.013e-05,2]
[394984726,1764254026829,-10000.01,4.013e-05,2]
[394984727,1764254026923,-10000.01,4.013e-05,2]
[394984728,1764254027003,-10000.01,4.013e-05,2]
[394984729,1764254027545,212.52786077,3.973e-05,2]
[394984732,1764254071836,-300.0,4.012e-05,2]
[394984733,1764254071858,-150.0,4.012e-05,2]
[394984734,1764254085975,150.0,3.973e-05,2]
[394984735,1764254098817,-19787.47213923,4.013e-05,2]
[394984736,1764254099692,-1071.0,4.013e-05,2]
[394984737,1764254109356,-300.0,4.012e-05,2]
[394984738,1764254109384,-300.0,4.012e-05,2]
[394984739,1764254109476,-328.0,4.012e-05,2]
[394984740,1764254109486,-18259.47213923,4.013e-05,2]
[394984741,1764254118951,-20000.0,4.013e-05,2]
[394984744,1764254129115,-10000.0,4.013e-05,2]
[394984745,1764254326484,-300.0,4.012e-05,2]
[394984746,1764254326511,-36.83373971,4.013e-05,2]
[394984747,1764254330393,300.0,3.973e-05,2]
[394984748,1764254340967,-205.51768466,4.013e-05,2]
[394984750,1764254353540,205.24042299,3.972e-05,2]
[394984751,1764254377504,-300.0,4.012e-05,2]
[394984752,1764254377531,-150.0,4.012e-05,2]
[394984753,1764254377591,-19100.0,4.013e-05,2]
[394984754,1764254392408,-20000.0,4.013e-05,2]
[394984755,1764254407298,-259.0,4.012e-05,2]
[394984756,1764254407325,-300.0,4.012e-05,2]
[394984757,1764254407380,-18882.0,4.013e-05,2]
[394984759,1764254446502,-709.63406598,4.012e-05,2]
[394984761,1764254458688,355.36593402,3.972e-05,2]
[394984762,1764254460041,-355.36593402,4.012e-05,2]
[394984763,1764254460074,-30.92276847,4.013e-05,2]
[394984764,1764254462438,-333.27002933,4.013e-05,2]
[394984765,1764254480977,1073.82686378,3.973e-05,2]
[394984766,1764254491477,-167.18393895,4.013e-05,2]
[394984767,1764254495240,-295.12722542,4.013e-05,2]
[394984768,1764254498174,-166.62506029,4.013e-05,2]
[394984770,1764254510922,371.58822161,3.973e-05,2]
[394984771,1764254512733,-50000.0,4.013e-05,2]
[394984772,1764254525862,-300.0,4.012e-05,2]
[394984773,1764254526385,-19400.0,4.013e-05,2]
[394984774,1764254549542,9628.42177839,3.913e-05,2]
[394984775,1764254549572,10000.01,3.913e-05,2]
[394984776,1764254549601,10000.01,3.913e-05,2]
[394984777,1764254549631,10000.01,3.913e-05,2]
[394984778,1764254552025,-313.69268593,3.913e-05,2]
[394984779,1764254553515,-212.92188351,3.913e-05,2]
[394984780,1764254555906,-194.61602059,3.874e-05,2]
[394984782,1764254625090,161.0,5.9e-07,2]
[394984783,1764254628540,-313.69268593,3.797e-05,2]
[394984784,1764254628560,-313.69268593,3.835e-05,2]
[394984785,1764254628582,-2675.07706986,3.874e-05,2]
[394984786,1764254628602,-300.0,3.912e-05,2]
[394984787,1764254628629,-287964.53755828,3.913e-05,2]
[394984788,1764254656033,-382.96275489,3.835e-05,2]
[394984789,1764254658098,-301.29887715,3.835e-05,2]
[394984790,1764254660060,-233.88371787,3.835e-05,2]
[394984791,1764254660088,-147.34244076,3.874e-05,2]
[394984792,1764254661007,-4514.66446189,3.874e-05,2]
[394984793,1764254661254,-970.68107622,3.874e-05,2]
[394984794,1764254661285,-500.0,3.893e-05,2]
[394984795,1764254661320,-503.75780268,3.893e-05,2]
[394984796,1764254661351,-500.0,3.893e-05,2]
[394984797,1764254661380,-500.0,3.893e-05,2]
[394984798,1764254661412,-500.0,3.893e-05,2]
[394984799,1764254661441,-500.0,3.893e-05,2]
[394984800,1764254661473,-528.37362186,3.893e-05,2]
[394984801,1764254661504,-300.0,3.912e-05,2]
[394984802,1764254664221,-292.51805573,3.913e-05,2]
[394984803,1764254665674,-241.37002,3.913e-05,2]
[394984804,1764254666880,-9430.64285391,3.913e-05,2]
[394984805,1764254667015,-10000.01,3.913e-05,2]
[394984806,1764254667151,-10000.01,3.913e-05,2]
[394984807,1764254669550,-357.98197911,3.913e-05,2]
[394984808,1764254671512,-187.05912285,3.913e-05,2]
[394984809,1764254673513,-151.3794719,3.913e-05,2]
[394984810,1764254675427,-155.73526175,3.913e-05,2]
[394984811,1764254678107,-231.74669824,3.913e-05,2]
[394984812,1764254680046,-498.1575924,3.913e-05,2]
[394984813,1764254682636,-238.11215837,3.874e-05,2]
[394984814,1764254684056,-326.881491,3.874e-05,2]
[394984815,1764254688093,-202.2851416,3.874e-05,2]
[394984816,1764254689466,-271.82906116,3.835e-05,2]
[394984817,1764254693541,-424.57307729,3.835e-05,2]
[394984818,1764254696702,-67.60050098,3.835e-05,2]
[394984819,1764254696726,-148.32555615,3.874e-05,2]
[394984820,1764254698268,-211.91424388,3.874e-05,2]
[394984821,1764254699732,-188.92525109,3.874e-05,2]
[394984822,1764254701867,-12.55244671,3.874e-05,2]
[394984823,1764254701889,-150.0,3.893e-05,2]
[394984824,1764254701915,-63.68493206,3.913e-05,2]
[394984825,1764254703337,-405.51768466,3.913e-05,2]
[394984826,1764254705207,-332.91110399,3.913e-05,2]
[394984827,1764254706922,-340.58420811,3.913e-05,2]
[394984828,1764254710372,-151.51972269,3.912e-05,2]
[394984829,1764254715762,-97.48027731,3.912e-05,2]
[394984830,1764254715815,-9805.04944538,3.913e-05,2]
[394984831,1764254716023,-10000.01,3.913e-05,2]
[394984832,1764254721656,-10000.01,3.913e-05,2]
[394984833,1764254721777,-10000.01,3.913e-05,2]
[394984834,1764254725537,-308.22991976,3.913e-05,2]
[394984835,1764254727490,-203.87446412,3.913e-05,2]
[394984836,1764254729021,-240.94883854,3.874e-05,2]
[394984837,1764254732149,-171.70734668,3.874e-05,2]
[394984838,1764254733526,-151.51972269,3.874e-05,2]
[394984839,1764254736046,-159.01099713,3.835e-05,2]
[394984840,1764254739213,-298.82720458,3.835e-05,2]
[394984841,1764254741645,-262.60806453,3.835e-05,2]
[394984842,1764254743368,-520.6625333,3.835e-05,2]
[394984843,1764254745344,-198.97046827,3.835e-05,2]
[394984844,1764254748361,-206.80377041,3.835e-05,2]
[394984845,1764254748386,-399.6457204,3.874e-05,2]
[394984846,1764254751488,-440.1231428,3.874e-05,2]
[394984847,1764254753504,-222.35879455,3.874e-05,2]
[394984848,1764254761498,-264.7672137,3.835e-05,2]
[394984849,1764254762965,-168.46844408,3.835e-05,2]
[394984850,1764254762991,-21.10314298,3.874e-05,2]
[394984851,1764254764418,-241.0340888,3.874e-05,2]
[394984852,1764254768180,-171.098426,3.874e-05,2]
[394984853,1764254768204,-204.74678479,3.912e-05,2]
[394984854,1764254769181,-95.25321521,3.912e-05,2]
[394984855,1764254769210,-266.80146031,3.913e-05,2]
[394984856,1764254770536,-174.61204991,3.913e-05,2]
[394984857,1764254772503,-228.26069778,3.913e-05,2]
[394984858,1764254775135,-246.30537198,3.913e-05,2]
[394984859,1764254777594,-218.49211706,3.913e-05,2]
[394984860,1764254789253,-10000.01,3.874e-05,2]
[394984861,1764254790868,-316.8500108,3.874e-05,2]
[394984862,1764254792884,-170.59340552,3.749e-05,2]
[394984863,1764254794489,-159.64954227,3.749e-05,2]
[394984864,1764254794783,-1136.28251411,3.749e-05,2]
[394984865,1764254795160,-7727.44497178,3.874e-05,2]
[394984866,1764254798236,-189.14427739,3.711e-05,2]
[394984867,1764254803523,-155.86225045,3.711e-05,2]
[394984868,1764254805168,-171.85336469,3.711e-05,2]
[394984869,1764254808853,-214.39293793,3.711e-05,2]
[394984870,1764254811363,-347.89351051,3.711e-05,2]
[394984871,1764254813984,-252.83679458,3.674e-05,2]
[394984872,1764254815438,-211.13392135,3.674e-05,2]
[394984873,1764254818614,-100.70850999,3.674e-05,2]
[394984874,1764254818640,-177.13970053,3.711e-05,2]
[394984875,1764254823938,-39.64601488,3.711e-05,2]
[394984876,1764254823965,-209.93996488,3.873e-05,2]
[394984877,1764254825392,-50.06003512,3.873e-05,2]
[394984878,1764254825416,-236.90048345,3.874e-05,2]
[394984879,1764254827480,-228.71516593,3.874e-05,2]
[394984880,1764254829701,-246.21203509,3.874e-05,2]
[394984881,1764254832245,-416.74319823,3.874e-05,2]
[394984882,1764254834294,-227.84698348,3.835e-05,2]
[394984883,1764254835648,-403.9736564,3.835e-05,2]
[394984884,1764254837963,-247.11891598,3.835e-05,2]
[394984885,1764254839999,-300.0,3.835e-05,2]
[394984886,1764254843079,-270.45423746,3.797e-05,2]
[394984887,1764254845782,-175.26723728,3.797e-05,2]
[394984888,1764254847822,-248.31840874,3.797e-05,2]
[394984889,1764254850338,-216.95369689,3.797e-05,2]
[394984890,1764254926203,-217.43113029,3.797e-05,2]
[394984891,1764254929673,-237.99916375,3.797e-05,2]
[394984892,1764254931060,-181.79943863,3.797e-05,2]
[394984893,1764254933702,-34.05084976,3.797e-05,2]
[394984894,1764254933725,-215.21007982,3.835e-05,2]
[394984895,1764254935214,-403.18770717,3.835e-05,2]
[394984896,1764254936935,-221.4553788,3.835e-05,2]
[394984897,1764254938134,-216.30933243,3.835e-05,2]
[394984898,1764254971528,-169.20999309,3.797e-05,2]
[394984899,1764254999900,212.1073563,3.227e-05,2]
[394985242,1764255041626,-2e-08,3.797e-05,2]
[394985275,1764255046660,-56.90167147,3.797e-05,2]
[394985276,1764255046671,-150.0,3.816e-05,2]
[394985277,1764255046680,-300.0,3.912e-05,2]
[394985278,1764255046690,-106285.19438272,3.913e-05,2]
[394985279,1764255046702,-34296.16382805,3.913e-05,2]
[394985281,1764255185759,-532.23003889,3.797e-05,2]
[394985282,1764255193331,206.70119687,3.697e-05,2]
[394985283,1764255194010,-234.4819738,3.797e-05,2]
[394985284,1764255197035,-172.52475666,3.797e-05,2]
[394985285,1764255197059,-200.14850941,3.835e-05,2]
[394985286,1764255200385,-353.58531765,3.835e-05,2]
[394985287,1764255202088,-315.5677809,3.835e-05,2]
[394985288,1764255211452,-69.93516139,3.835e-05,2]
[394985289,1764255211472,-230.06483861,3.874e-05,2]
[394985290,1764255214289,-345.38080514,3.874e-05,2]
[394985291,1764255217931,-412.5051894,3.835e-05,2]
[394985292,1764255219453,-296.66674134,3.835e-05,2]
[394985293,1764255219477,-107.6438327,3.874e-05,2]
[394985294,1764255221840,-256.1472929,3.874e-05,2]
[394985295,1764255221862,-25.0239558,3.912e-05,2]
[394985296,1764255223762,-143.9760442,3.912e-05,2]
[394985297,1764255223789,-25.094968,3.913e-05,2]
[394985298,1764255226653,-210.27159115,3.913e-05,2]
[394985299,1764255228352,-164.45472772,3.913e-05,2]
[394985300,1764255232124,-431.40237395,3.874e-05,2]
[394985301,1764255234047,-220.55197004,3.874e-05,2]
[394985302,1764255235998,-241.20937038,3.874e-05,2]
[394985303,1764255238512,-177.90242636,3.874e-05,2]
[394985304,1764255241137,-266.44612548,3.835e-05,2]
[394985305,1764255242679,-491.64796342,3.835e-05,2]
[394985306,1764255244705,-365.34739187,3.835e-05,2]
[394985307,1764255255908,-178.85661644,3.835e-05,2]
[394985308,1764255258367,-255.21292676,3.835e-05,2]
[394985309,1764255262114,-238.77603222,3.835e-05,2]
[394985310,1764255263689,-378.42095509,3.835e-05,2]
[394985311,1764255265671,-296.67235938,3.835e-05,2]
[394985312,1764255267148,-303.89188702,3.835e-05,2]
[394985313,1764255269693,-242.06636562,3.835e-05,2]
[394985314,1764255272248,-376.92022739,3.835e-05,2]
[394985315,1764255274074,-337.73958476,3.835e-05,2]
[394985316,1764255275437,-233.58531602,3.835e-05,2]
[394985317,1764255279023,-265.32804676,3.835e-05,2]
[394985318,1764255280564,-300.0,3.835e-05,2]
[394985319,1764255282029,-161.96892812,3.835e-05,2]
[394985320,1764255283895,-346.27885176,3.835e-05,2]
[394985321,1764255287342,-181.83144987,3.835e-05,2]
[394985322,1764255288961,-261.54002788,3.835e-05,2]
[394985323,1764255289155,279.86416778,3.797e-05,2]
[394985324,1764255290372,-234.44224627,3.835e-05,2]
[394985325,1764255292412,-183.72630386,3.835e-05,2]
[394985326,1764255294788,-328.39197298,3.835e-05,2]
[394985327,1764255301031,-206.68240134,3.835e-05,2]
[394985328,1764255303748,-229.21548327,3.834e-05,2]
[394985329,1764255306062,-70.78451673,3.834e-05,2]
[394985330,1764255306086,-100.95581192,3.835e-05,2]
[394985331,1764255308005,-344.35016401,3.835e-05,2]
[394985332,1764255310897,-164.87319919,3.835e-05,2]
[394985333,1764255313381,-179.8074833,3.835e-05,2]
[394985334,1764255330914,-247.91473917,3.835e-05,2]
[394985335,1764255335463,-155.49811612,3.835e-05,2]
[394985336,1764255337462,-374.73070873,3.835e-05,2]
[394985337,1764255341696,-320.19035369,3.835e-05,2]
[394985338,1764255343708,-452.05540096,3.835e-05,2]
[394985339,1764255415024,-895.36651593,3.835e-05,2]
[394985340,1764255415075,-7510.60424719,3.835e-05,2]
[394985341,1764255416340,-698.67272095,3.835e-05,2]
[394985342,1764255424371,150.0,3.816e-05,2]
[394985343,1764255432942,150.0,3.816e-05,2]
[394985344,1764255448698,150.0,3.816e-05,2]
[394985345,1764255456554,150.0,3.816e-05,2]
[394985346,1764255471771,150.0,3.816e-05,2]
[394985347,1764255480098,150.0,3.816e-05,2]
[394985348,1764255495409,150.0,3.816e-05,2]
[394985349,1764255503225,150.0,3.816e-05,2]
[394985350,1764255518906,150.0,3.816e-05,2]
[394985351,1764255527821,150.0,3.816e-05,2]
[394985352,1764255543419,150.0,3.816e-05,2]
[394985353,1764255554955,150.0,3.816e-05,2]
[394985354,1764255565602,6802.6645581,3.813e-05,2]
[394985355,1764255565632,10000.01,3.813e-05,2]
[394985356,1764255565661,10000.01,3.813e-05,2]
[394985357,1764255565689,10000.01,3.813e-05,2]
[394985358,1764255565717,10000.01,3.813e-05,2]
[394985359,1764255565744,10000.01,3.813e-05,2]
[394985360,1764255565773,10000.01,3.813e-05,2]
[394985361,1764255565801,10000.01,3.813e-05,2]
[394985362,1764255569393,-263.55323534,3.813e-05,2]
[394985363,1764255570197,31407.94083521,3.775e-05,2]
[394985364,1764255572967,-276.53652716,3.813e-05,2]
[394985365,1764255577973,6776.20728329,3.775e-05,2]
[394985366,1764255586196,1238.02396139,3.775e-05,2]
[394985367,1764255619448,665.69254267,3.712e-05,2]
[394985368,1764255679758,206.70119687,3.735e-05,2]
[394985372,1764255795935,-226.99881378,3.812e-05,2]
[394985374,1764255890450,797.0961494,3.423e-05,2]
[394985377,1764256027614,18534.3053559,3.3e-05,2]
[394985379,1764256172086,-173.26302056,3.812e-05,2]
[394985380,1764256175864,-171.90376807,3.812e-05,2]
[394985381,1764256177927,-166.61883105,3.812e-05,2]
[394985382,1764256179423,-258.00832451,3.812e-05,2]
[394985383,1764256182321,-21.20605581,3.812e-05,2]
[394985384,1764256182347,-311.0,3.812e-05,2]
[394985385,1764256182370,-24.41389979,3.812e-05,2]
[394985386,1764256184484,-246.25225795,3.812e-05,2]
[394985387,1764256188303,-61.77033511,3.812e-05,2]
[394985388,1764256188328,-109.64743615,3.812e-05,2]
[394985389,1764256190491,-190.35256385,3.812e-05,2]
[394985390,1764256190513,-91.54121046,3.812e-05,2]
[394985391,1764256192703,-58.45878954,3.812e-05,2]
[394985392,1764256192730,-110.27553664,3.813e-05,2]
[394985393,1764256194646,-203.55812264,3.813e-05,2]
[394985394,1764256195891,-202.54324198,3.813e-05,2]
[394985395,1764256197809,-200.0,3.813e-05,2]
[394985396,1764256199277,-166.04038303,3.813e-05,2]
[394985397,1764256201348,-195.54614795,3.813e-05,2]
[394985398,1764256204830,-300.0,3.813e-05,2]
[394985399,1764256207006,-297.21617356,3.813e-05,2]
[394985400,1764256209502,-211.91748837,3.813e-05,2]
[394985401,1764256211672,-302.78382644,3.813e-05,2]
[394985402,1764256214438,-153.34474457,3.813e-05,2]
[394985404,1764256220172,-320.78017685,3.813e-05,2]
[394985405,1764256221756,-179.21982315,3.813e-05,2]
[394985406,1764256224295,-440.88129075,3.813e-05,2]
[394985407,1764256228372,-223.04978818,3.813e-05,2]
[394985418,1764256232051,-182.82596101,3.813e-05,2]
[394985419,1764256233532,-332.82431673,3.813e-05,2]
[394985420,1764256235722,-362.78096674,3.813e-05,2]
[394985422,1764256237745,-3891.5448,3.813e-05,2]
[394985444,1764256239973,-3633.12833406,3.813e-05,2]
[394985445,1764256240737,-2e-08,3.813e-05,2]
[394985446,1764256240856,-12.72270198,3.813e-05,2]
[394985455,1764256244990,-502.78472785,3.813e-05,2]
[394985539,1764256262728,217.89812208,3.775e-05,2]
[394985540,1764256291530,-691.63829408,3.813e-05,2]
[394985541,1764256295331,-300.0,3.813e-05,2]
[394985542,1764256298508,-167.17568327,3.813e-05,2]
[394985543,1764256302610,500.0,3.11e-05,2]
[394985544,1764256306797,167.17568327,3.775e-05,2]
[394985545,1764256314702,709.27913023,3.775e-05,2]
[394985546,1764256344750,1232.4,0.0002,30]
[394985547,1764256351543,-290.43999302,3.813e-05,2]
[394985548,1764256352972,-311.92810643,3.813e-05,2]
[394985549,1764256356462,-364.16107803,3.813e-05,2]
[394985552,1764256439549,300.00119004,0.000215,120]
[394985553,1764256439764,300.0,6.458e-05,120]
[394985554,1764256441514,300.0,6.458e-05,120]
[394985556,1764256443255,300.0,6.458e-05,120]
[394985557,1764256444979,300.0,6.458e-05,120]
[394985565,1764256503146,286.29060225,0.0002,30]
[394985566,1764256503181,1890.29,0.0002,30]
[394985567,1764256514700,500.0,9.11e-05,3]
[394985568,1764256515318,500.0,9.11e-05,3]
[394985569,1764256515913,500.0,9.11e-05,3]
[394985570,1764256516907,500.0,9.11e-05,3]
[394985571,1764256517217,500.0,9.11e-05,3]
[394985572,1764256518211,628.84303548,9.11e-05,3]
[394985573,1764256520373,500.0,9.11e-05,3]
[394985574,1764256528727,500.0,9.11e-05,3]
[394985575,1764256531084,-300.0,3.812e-05,2]
[394985576,1764256531114,-97.93818485,3.812e-05,2]
[394985577,1764256532628,-212.24367788,3.812e-05,2]
[394985578,1764256534154,-339.82700162,3.812e-05,2]
[394985579,1764256534492,257.55789939,9.11e-05,3]
[394985580,1764256537193,-220.96984632,3.812e-05,2]
[394985581,1764256539554,-248.67557386,3.812e-05,2]
[394985582,1764256543730,-80.34571547,3.812e-05,2]
[394985583,1764256543763,-161.5579197,3.813e-05,2]
[394985584,1764256558811,871638.24992546,3.713e-05,2]
[394985585,1764256650931,-199.58233865,3.816e-05,2]
[394985591,1764256653342,-177.25805959,3.816e-05,2]
[394985605,1764256657414,-238.01013229,3.816e-05,2]
[394985606,1764256658797,-103.29816836,3.816e-05,2]
[394985607,1764256658826,-89.32794655,3.819e-05,2]
[394985608,1764256661474,-60.67205345,3.819e-05,2]
[394985609,1764256661502,-237.43282263,3.821e-05,2]
[394985610,1764256664898,-228.66283741,3.821e-05,2]
[394985611,1764256669545,-200.0,3.821e-05,2]
[394985612,1764256671443,-205.68742947,3.82e-05,2]
[394985613,1764256673907,-176.43963223,3.82e-05,2]
[394985614,1764256675946,-326.83666516,3.82e-05,2]
[394985615,1764256680405,491.03627314,3.782e-05,2]
[394985616,1764256696261,-357.84795174,3.82e-05,2]
[394985617,1764256702834,433.1883214,3.782e-05,2]